[Event "Titled Tuesday Blitz March 15 Late 2022"]
[White "Maghsoodloo, Parham"]
[Black "Paravyan, David"]
[WhiteFideId "12539929"]
[BlackFideId "4194985"]
[WhiteElo "2630"]
[BlackElo "2569"]
[Result "0-1"]
[Round "10"]
[TimeControl "180+1"]
[Date "2022.03.15"]
[WhiteClock "0:00:05"]
[BlackClock "0:00:08"]

1. d4 {[%clk 0:02:59]}  Nf6 {[%clk 0:02:55]} 2. Nf3 {[%clk 0:02:59]}  g6 {[%clk 0:02:55]} 3. c4 {[%clk 0:02:58]}  Bg7 {[%clk 0:02:54]} 4. Nc3 {[%clk 0:02:58]}  d5 {[%clk 0:02:55]} 5. Qb3 {[%clk 0:02:58]}  dxc4 {[%clk 0:02:54]} 6. Qxc4 {[%clk 0:02:59]}  O-O {[%clk 0:02:55]} 7. e4 {[%clk 0:03:00]}  a6 {[%clk 0:02:55]} 8. Be2 {[%clk 0:02:59]}  b5 {[%clk 0:02:54]} 9. Qb3 {[%clk 0:02:59]}  c5 {[%clk 0:02:54]} 10. dxc5 {[%clk 0:02:59]}  Be6 {[%clk 0:02:55]} 11. Qc2 {[%clk 0:02:58]}  Nbd7 {[%clk 0:02:46]} 12. Be3 {[%clk 0:02:58]}  Rc8 {[%clk 0:02:15]} 13. Rd1 {[%clk 0:02:50]}  Qa5 {[%clk 0:02:15]} 14. a3 {[%clk 0:02:50]}  b4 {[%clk 0:02:13]} 15. axb4 {[%clk 0:02:46]}  Qxb4 {[%clk 0:02:14]} 16. c6 {[%clk 0:02:35]}  Rxc6 {[%clk 0:02:10]} 17. Nd4 {[%clk 0:02:35]}  Rd6 {[%clk 0:02:09]} 18. Nxe6 {[%clk 0:02:34]}  Rxd1+ {[%clk 0:02:09]} 19. Bxd1 {[%clk 0:02:33]}  fxe6 {[%clk 0:02:10]} 20. O-O {[%clk 0:02:21]}  Rb8 {[%clk 0:02:00]} 21. b3 {[%clk 0:01:58]}  a5 {[%clk 0:01:47]} 22. Na4 {[%clk 0:01:29]}  Qxe4 {[%clk 0:01:42]} 23. Qc7 {[%clk 0:01:29]}  Qe5 {[%clk 0:01:20]} 24. Qa7 {[%clk 0:01:12]}  Qd5 {[%clk 0:00:49]} 25. Nc5 {[%clk 0:00:41]}  Ra8 {[%clk 0:00:39]} 26. Qc7 {[%clk 0:00:41]}  Nxc5 {[%clk 0:00:23]} 27. Bxc5 {[%clk 0:00:41]}  Qd7 {[%clk 0:00:18]} 28. Qxd7 {[%clk 0:00:31]}  Nxd7 {[%clk 0:00:19]} 29. Bxe7 {[%clk 0:00:30]}  Bf8 {[%clk 0:00:19]} 30. Bg5 {[%clk 0:00:23]}  Kf7 {[%clk 0:00:20]} 31. g3 {[%clk 0:00:21]}  Rb8 {[%clk 0:00:19]} 32. Bc2 {[%clk 0:00:20]}  Nc5 {[%clk 0:00:17]} 33. Rd1 {[%clk 0:00:20]}  Rb7 {[%clk 0:00:16]} 34. Rb1 {[%clk 0:00:11]}  Be7 {[%clk 0:00:16]} 35. Be3 {[%clk 0:00:11]}  a4 {[%clk 0:00:10]} 36. b4 {[%clk 0:00:11]}  Nb3 {[%clk 0:00:08]} 37. Bxb3 {[%clk 0:00:11]}  axb3 {[%clk 0:00:08]} 38. Bd2 {[%clk 0:00:07]}  Rd7 {[%clk 0:00:08]} 39. Be1 {[%clk 0:00:07]}  Rd3 {[%clk 0:00:06]} 40. b5 {[%clk 0:00:07]}  Bc5 {[%clk 0:00:06]} 41. Kf1 {[%clk 0:00:07]}  e5 {[%clk 0:00:07]} 42. Ke2 {[%clk 0:00:05]}  e4 {[%clk 0:00:07]} 43. Bd2 {[%clk 0:00:05]}  Ke6 {[%clk 0:00:07]} 44. f4 {[%clk 0:00:05]}  Kd5 {[%clk 0:00:07]} 45. g4 {[%clk 0:00:05]}  Kc4 {[%clk 0:00:07]} 46. f5 {[%clk 0:00:04]}  gxf5 {[%clk 0:00:08]} 47. gxf5 {[%clk 0:00:05]}  Rf3 {[%clk 0:00:08]} 0-1


[Site "https://www.chess.com"]

[Event "Titled Tuesday Blitz March 15 Late 2022"]
[White "Maltsevskaya, Aleksandra"]
[Black "Sokolovsky, Yahli"]
[WhiteFideId "24174041"]
[BlackFideId "2820242"]
[WhiteElo "2241"]
[BlackElo "1770"]
[Result "0-1"]
[Round "10"]
[TimeControl "180+1"]
[Date "2022.03.15"]
[WhiteClock "0:00:02"]
[BlackClock "0:00:08"]

1. e4 {[%clk 0:02:52]}  g6 {[%clk 0:02:59]} 2. d4 {[%clk 0:02:51]}  Bg7 {[%clk 0:02:59]} 3. Nf3 {[%clk 0:02:48]}  d6 {[%clk 0:03:00]} 4. c3 {[%clk 0:02:46]}  a6 {[%clk 0:03:00]} 5. Bd3 {[%clk 0:02:46]}  b5 {[%clk 0:03:00]} 6. a4 {[%clk 0:02:44]}  bxa4 {[%clk 0:02:57]} 7. O-O {[%clk 0:02:43]}  Bd7 {[%clk 0:02:56]} 8. Re1 {[%clk 0:02:38]}  e5 {[%clk 0:02:54]} 9. dxe5 {[%clk 0:02:36]}  dxe5 {[%clk 0:02:54]} 10. Bc4 {[%clk 0:02:31]}  Ne7 {[%clk 0:02:53]} 11. Ng5 {[%clk 0:02:14]}  O-O {[%clk 0:02:53]} 12. Qf3 {[%clk 0:02:14]}  Qe8 {[%clk 0:02:48]} 13. Qg3 {[%clk 0:02:04]}  Nbc6 {[%clk 0:02:31]} 14. Qh4 {[%clk 0:01:57]}  h6 {[%clk 0:02:29]} 15. Nf3 {[%clk 0:01:57]}  Kh7 {[%clk 0:01:58]} 16. Ng5+ {[%clk 0:01:53]}  Kg8 {[%clk 0:01:57]} 17. Nf3 {[%clk 0:01:52]}  Kh7 {[%clk 0:01:57]} 18. h3 {[%clk 0:01:37]}  Na5 {[%clk 0:01:54]} 19. Bd5 {[%clk 0:01:27]}  c6 {[%clk 0:01:54]} 20. Ba2 {[%clk 0:01:25]}  Nb3 {[%clk 0:01:53]} 21. Bxb3 {[%clk 0:01:25]}  axb3 {[%clk 0:01:54]} 22. Nbd2 {[%clk 0:01:24]}  Rb8 {[%clk 0:01:26]} 23. Nc4 {[%clk 0:01:20]}  Ng8 {[%clk 0:01:23]} 24. Rd1 {[%clk 0:01:07]}  Bc8 {[%clk 0:00:38]} 25. Be3 {[%clk 0:01:01]}  Qe7 {[%clk 0:00:32]} 26. Qxe7 {[%clk 0:00:31]}  Nxe7 {[%clk 0:00:33]} 27. Bc5 {[%clk 0:00:31]}  Bf6 {[%clk 0:00:32]} 28. Ncxe5 {[%clk 0:00:23]}  Be6 {[%clk 0:00:29]} 29. Bxe7 {[%clk 0:00:21]}  Bxe7 {[%clk 0:00:30]} 30. Nxc6 {[%clk 0:00:22]}  Rb7 {[%clk 0:00:31]} 31. Nxe7 {[%clk 0:00:22]}  Rxe7 {[%clk 0:00:32]} 32. Rxa6 {[%clk 0:00:19]}  Bc4 {[%clk 0:00:32]} 33. Ra4 {[%clk 0:00:16]}  Rxe4 {[%clk 0:00:33]} 34. Nd2 {[%clk 0:00:16]}  Be2 {[%clk 0:00:33]} 35. Rxe4 {[%clk 0:00:09]}  Bxd1 {[%clk 0:00:34]} 36. Rb4 {[%clk 0:00:09]}  Re8 {[%clk 0:00:28]} 37. Kf1 {[%clk 0:00:07]}  Re2 {[%clk 0:00:16]} 38. Nxb3 {[%clk 0:00:08]}  Rxb2 {[%clk 0:00:16]} 39. Nd4 {[%clk 0:00:08]}  Ra2 {[%clk 0:00:14]} 40. g3 {[%clk 0:00:05]}  Ba4 {[%clk 0:00:10]} 41. Kg2 {[%clk 0:00:06]}  Kg7 {[%clk 0:00:08]} 42. Rc4 {[%clk 0:00:02]}  Bd7 {[%clk 0:00:08]} 43. Rc7 {[%clk 0:00:02]}  Ba4 {[%clk 0:00:08]} 44. h4 {[%clk 0:00:02]}  Rd2 {[%clk 0:00:07]} 45. Nf3 {[%clk 0:00:01]}  Rd5 {[%clk 0:00:07]} 46. c4 {[%clk 0:00:02]}  Rf5 {[%clk 0:00:07]} 47. c5 {[%clk 0:00:01]}  Bd1 {[%clk 0:00:06]} 48. Nd4 {[%clk 0:00:02]}  Rd5 {[%clk 0:00:06]} 49. Ne6+ {[%clk 0:00:02]}  Kf6 {[%clk 0:00:07]} 50. Nf4 {[%clk 0:00:03]}  Rd4 {[%clk 0:00:07]} 51. Rc6+ {[%clk 0:00:03]}  Kg7 {[%clk 0:00:06]} 52. Rc7 {[%clk 0:00:04]}  Bb3 {[%clk 0:00:05]} 53. Kf3 {[%clk 0:00:04]}  Rd1 {[%clk 0:00:04]} 54. Ke3 {[%clk 0:00:04]}  Rc1 {[%clk 0:00:04]} 55. Kd2 {[%clk 0:00:04]}  Rc2+ {[%clk 0:00:05]} 56. Kd3 {[%clk 0:00:04]}  Rc1 {[%clk 0:00:06]} 57. c6 {[%clk 0:00:02]}  Ba4 {[%clk 0:00:07]} 58. Kd2 {[%clk 0:00:01]}  Rxc6 {[%clk 0:00:07]} 59. Ra7 {[%clk 0:00:02]}  Rd6+ {[%clk 0:00:07]} 60. Ke3 {[%clk 0:00:02]}  Bc6 {[%clk 0:00:08]} 61. Ke2 {[%clk 0:00:01]}  Rf6 {[%clk 0:00:09]} 62. Nd3 {[%clk 0:00:02]}  Be4 {[%clk 0:00:10]} 63. Ne5 {[%clk 0:00:01]}  Bd5 {[%clk 0:00:11]} 64. Ke3 {[%clk 0:00:01]}  Rf5 {[%clk 0:00:11]} 65. f4 {[%clk 0:00:01]}  Rf6 {[%clk 0:00:12]} 66. Kd4 {[%clk 0:00:02]}  Be6 {[%clk 0:00:11]} 67. Rc7 {[%clk 0:00:02]}  h5 {[%clk 0:00:11]} 68. Ke3 {[%clk 0:00:02]}  Bf5 {[%clk 0:00:12]} 69. Re7 {[%clk 0:00:02]}  Kg8 {[%clk 0:00:11]} 70. Re8+ {[%clk 0:00:03]}  Kg7 {[%clk 0:00:12]} 71. Kd4 {[%clk 0:00:03]}  Re6 {[%clk 0:00:12]} 72. Rb8 {[%clk 0:00:03]}  Rd6+ {[%clk 0:00:12]} 73. Ke3 {[%clk 0:00:03]}  Rd1 {[%clk 0:00:12]} 74. Rb7 {[%clk 0:00:04]}  Be6 {[%clk 0:00:13]} 75. Nf3 {[%clk 0:00:03]}  Rc1 {[%clk 0:00:13]} 76. Ng5 {[%clk 0:00:03]}  Bd5 {[%clk 0:00:09]} 77. Rd7 {[%clk 0:00:04]}  Ba2 {[%clk 0:00:08]} 78. Kd2 {[%clk 0:00:04]}  Rg1 {[%clk 0:00:08]} 79. Ra7 {[%clk 0:00:04]}  Rxg3 {[%clk 0:00:08]} 80. Ke2 {[%clk 0:00:04]}  Bc4+ {[%clk 0:00:08]} 81. Kf2 {[%clk 0:00:04]}  Rg4 {[%clk 0:00:09]} 82. Ke3 {[%clk 0:00:04]}  Rxh4 {[%clk 0:00:09]} 83. Nf3 {[%clk 0:00:03]}  Rh3 {[%clk 0:00:08]} 84. Kf2 {[%clk 0:00:04]}  Bd5 {[%clk 0:00:08]} 85. Ng5 {[%clk 0:00:03]}  Rd3 {[%clk 0:00:07]} 86. Rd7 {[%clk 0:00:03]}  Kf6 {[%clk 0:00:07]} 87. Nh7+ {[%clk 0:00:02]}  Kf5 {[%clk 0:00:08]} 0-1


[Site "https://www.chess.com"]

[Event "Titled Tuesday Blitz March 15 Late 2022"]
[White "Martin Barcelo, Carles"]
[Black "Bilych, Olexiy"]
[WhiteFideId "24561444"]
[BlackFideId "14156504"]
[WhiteElo "1875"]
[BlackElo "2176"]
[Result "0-1"]
[Round "10"]
[TimeControl "180+1"]
[Date "2022.03.15"]
[WhiteClock "0:00:08"]
[BlackClock "0:00:13"]

1. e4 {[%clk 0:03:00]}  c5 {[%clk 0:02:58]} 2. Nf3 {[%clk 0:02:59]}  d6 {[%clk 0:02:58]} 3. Bb5+ {[%clk 0:02:59]}  Nd7 {[%clk 0:02:57]} 4. O-O {[%clk 0:02:58]}  a6 {[%clk 0:02:55]} 5. Bd3 {[%clk 0:02:56]}  Ngf6 {[%clk 0:02:50]} 6. Re1 {[%clk 0:02:55]}  g6 {[%clk 0:02:46]} 7. c3 {[%clk 0:02:55]}  Bg7 {[%clk 0:02:45]} 8. Bc2 {[%clk 0:02:56]}  b5 {[%clk 0:02:31]} 9. d4 {[%clk 0:02:55]}  cxd4 {[%clk 0:02:31]} 10. cxd4 {[%clk 0:02:56]}  Nb6 {[%clk 0:02:31]} 11. Bd2 {[%clk 0:02:48]}  O-O {[%clk 0:02:31]} 12. Ba5 {[%clk 0:02:48]}  Bg4 {[%clk 0:02:18]} 13. Nbd2 {[%clk 0:02:42]}  Qb8 {[%clk 0:02:13]} 14. h3 {[%clk 0:02:41]}  Bxf3 {[%clk 0:02:11]} 15. Qxf3 {[%clk 0:02:38]}  Nfd7 {[%clk 0:02:06]} 16. Qd3 {[%clk 0:02:36]}  Rc8 {[%clk 0:02:02]} 17. Bb3 {[%clk 0:02:36]}  e6 {[%clk 0:01:48]} 18. Rac1 {[%clk 0:02:35]}  Qb7 {[%clk 0:01:42]} 19. a3 {[%clk 0:02:28]}  Rc7 {[%clk 0:01:28]} 20. Nf3 {[%clk 0:02:12]}  Rac8 {[%clk 0:01:27]} 21. Bc3 {[%clk 0:01:34]}  Nc4 {[%clk 0:01:21]} 22. Bxc4 {[%clk 0:01:28]}  Rxc4 {[%clk 0:01:19]} 23. Bd2 {[%clk 0:01:24]}  Nb6 {[%clk 0:01:17]} 24. b3 {[%clk 0:01:22]}  Rxc1 {[%clk 0:01:09]} 25. Rxc1 {[%clk 0:01:22]}  Rxc1+ {[%clk 0:01:08]} 26. Bxc1 {[%clk 0:01:23]}  Qc6 {[%clk 0:01:09]} 27. Bd2 {[%clk 0:01:23]}  d5 {[%clk 0:01:07]} 28. e5 {[%clk 0:01:21]}  Bf8 {[%clk 0:01:06]} 29. Bb4 {[%clk 0:01:13]}  Qc1+ {[%clk 0:01:04]} 30. Kh2 {[%clk 0:01:13]}  Bxb4 {[%clk 0:00:57]} 31. axb4 {[%clk 0:01:14]}  Nc8 {[%clk 0:00:48]} 32. h4 {[%clk 0:01:05]}  Ne7 {[%clk 0:00:46]} 33. g3 {[%clk 0:00:55]}  Nc6 {[%clk 0:00:42]} 34. Ng5 {[%clk 0:00:41]}  h6 {[%clk 0:00:14]} 35. Nxe6 {[%clk 0:00:41]}  fxe6 {[%clk 0:00:14]} 36. Qxg6+ {[%clk 0:00:42]}  Kf8 {[%clk 0:00:15]} 37. Qf6+ {[%clk 0:00:41]}  Ke8 {[%clk 0:00:15]} 38. Qxe6+ {[%clk 0:00:40]}  Ne7 {[%clk 0:00:15]} 39. Qxa6 {[%clk 0:00:39]}  Qd2 {[%clk 0:00:14]} 40. Qxb5+ {[%clk 0:00:38]}  Kf7 {[%clk 0:00:13]} 41. Kg2 {[%clk 0:00:39]}  Qxd4 {[%clk 0:00:13]} 42. Qb8 {[%clk 0:00:34]}  Qe4+ {[%clk 0:00:12]} 43. Kg1 {[%clk 0:00:34]}  d4 {[%clk 0:00:12]} 44. Qd6 {[%clk 0:00:15]}  d3 {[%clk 0:00:12]} 45. b5 {[%clk 0:00:15]}  Qe1+ {[%clk 0:00:11]} 46. Kg2 {[%clk 0:00:15]}  d2 {[%clk 0:00:12]} 47. Qf6+ {[%clk 0:00:14]}  Ke8 {[%clk 0:00:12]} 48. Qh8+ {[%clk 0:00:09]}  Kd7 {[%clk 0:00:12]} 49. e6+ {[%clk 0:00:10]}  Qxe6 {[%clk 0:00:12]} 50. Qd4+ {[%clk 0:00:08]}  Qd5+ {[%clk 0:00:12]} 51. Qxd5+ {[%clk 0:00:08]}  Nxd5 {[%clk 0:00:13]} 0-1


[Site "https://www.chess.com"]

[Event "Titled Tuesday Blitz March 15 Late 2022"]
[White "Martinez Alcantara, Jose Eduardo"]
[Black "Bryakin, Mikhail"]
[WhiteFideId "3805662"]
[BlackFideId "4165314"]
[WhiteElo "2690"]
[BlackElo "2417"]
[Result "1-0"]
[Round "10"]
[TimeControl "180+1"]
[Date "2022.03.15"]
[WhiteClock "0:00:51"]
[BlackClock "0:00:11"]

1. e4 {[%clk 0:03:00]}  c5 {[%clk 0:02:57]} 2. Nf3 {[%clk 0:03:01]}  Nc6 {[%clk 0:02:57]} 3. Nc3 {[%clk 0:03:00]}  e5 {[%clk 0:02:56]} 4. Bc4 {[%clk 0:03:00]}  d6 {[%clk 0:02:55]} 5. d3 {[%clk 0:03:00]}  Be7 {[%clk 0:02:54]} 6. Nd5 {[%clk 0:03:00]}  Nf6 {[%clk 0:02:54]} 7. Nxf6+ {[%clk 0:03:00]}  Bxf6 {[%clk 0:02:54]} 8. c3 {[%clk 0:03:01]}  O-O {[%clk 0:02:53]} 9. O-O {[%clk 0:03:01]}  Be6 {[%clk 0:02:52]} 10. h3 {[%clk 0:02:59]}  d5 {[%clk 0:02:51]} 11. exd5 {[%clk 0:02:58]}  Bxd5 {[%clk 0:02:52]} 12. Nd2 {[%clk 0:02:49]}  Re8 {[%clk 0:02:50]} 13. Ne4 {[%clk 0:02:48]}  Be7 {[%clk 0:02:45]} 14. Be3 {[%clk 0:02:36]}  b6 {[%clk 0:02:44]} 15. Qa4 {[%clk 0:02:23]}  Bxc4 {[%clk 0:02:32]} 16. dxc4 {[%clk 0:02:12]}  Qc7 {[%clk 0:02:32]} 17. g4 {[%clk 0:02:03]}  g6 {[%clk 0:02:08]} 18. g5 {[%clk 0:02:03]}  Kg7 {[%clk 0:01:53]} 19. Rad1 {[%clk 0:01:59]}  Rad8 {[%clk 0:01:37]} 20. Rd5 {[%clk 0:01:57]}  Rd7 {[%clk 0:01:36]} 21. Rfd1 {[%clk 0:01:49]}  Red8 {[%clk 0:01:37]} 22. R1d2 {[%clk 0:01:44]}  Nb8 {[%clk 0:01:25]} 23. Qd1 {[%clk 0:01:36]}  Rxd5 {[%clk 0:01:25]} 24. cxd5 {[%clk 0:01:37]}  Bd6 {[%clk 0:01:25]} 25. c4 {[%clk 0:01:30]}  Nd7 {[%clk 0:01:24]} 26. h4 {[%clk 0:01:27]}  Rf8 {[%clk 0:01:19]} 27. Qf3 {[%clk 0:01:16]}  f5 {[%clk 0:01:13]} 28. gxf6+ {[%clk 0:01:17]}  Nxf6 {[%clk 0:01:14]} 29. Ng5 {[%clk 0:01:17]}  Kg8 {[%clk 0:01:07]} 30. Ne6 {[%clk 0:01:17]}  Qe7 {[%clk 0:00:47]} 31. Nxf8 {[%clk 0:01:16]}  e4 {[%clk 0:00:48]} 32. Qh3 {[%clk 0:01:11]}  Kxf8 {[%clk 0:00:42]} 33. Qe6 {[%clk 0:01:08]}  Qxe6 {[%clk 0:00:40]} 34. dxe6 {[%clk 0:01:09]}  Ke7 {[%clk 0:00:41]} 35. Bg5 {[%clk 0:01:10]}  Be5 {[%clk 0:00:41]} 36. Rd7+ {[%clk 0:01:07]}  Kxe6 {[%clk 0:00:42]} 37. Rxa7 {[%clk 0:01:05]}  Nd7 {[%clk 0:00:30]} 38. b3 {[%clk 0:01:02]}  Bd4 {[%clk 0:00:26]} 39. a4 {[%clk 0:00:59]}  Bg7 {[%clk 0:00:22]} 40. Kg2 {[%clk 0:00:57]}  h6 {[%clk 0:00:22]} 41. Be3 {[%clk 0:00:56]}  h5 {[%clk 0:00:22]} 42. Ra6 {[%clk 0:00:56]}  Kf5 {[%clk 0:00:21]} 43. a5 {[%clk 0:00:56]}  bxa5 {[%clk 0:00:20]} 44. Ra7 {[%clk 0:00:56]}  Ke6 {[%clk 0:00:20]} 45. Ra6+ {[%clk 0:00:57]}  Kf5 {[%clk 0:00:19]} 46. Rxa5 {[%clk 0:00:58]}  Bf8 {[%clk 0:00:19]} 47. Ra7 {[%clk 0:00:57]}  Ke6 {[%clk 0:00:19]} 48. Bf4 {[%clk 0:00:56]}  Be7 {[%clk 0:00:17]} 49. Bg3 {[%clk 0:00:55]}  Nf6 {[%clk 0:00:15]} 50. Ra6+ {[%clk 0:00:54]}  Kd7 {[%clk 0:00:16]} 51. Kf1 {[%clk 0:00:53]}  e3 {[%clk 0:00:11]} 52. f3 {[%clk 0:00:51]} 1-0


[Site "https://www.chess.com"]

[Event "Titled Tuesday Blitz March 15 Late 2022"]
[White "Mekhitarian, Krikor Sevag"]
[Black "Xu, Yi"]
[WhiteFideId "2107660"]
[BlackFideId "8605564"]
[WhiteElo "2598"]
[BlackElo "2471"]
[Result "0-1"]
[Round "10"]
[TimeControl "180+1"]
[Date "2022.03.15"]
[WhiteClock "0:00:03"]
[BlackClock "0:00:20"]

1. e4 {[%clk 0:03:00]}  c5 {[%clk 0:02:59]} 2. Nf3 {[%clk 0:03:00]}  d6 {[%clk 0:03:00]} 3. d4 {[%clk 0:03:00]}  cxd4 {[%clk 0:03:00]} 4. Nxd4 {[%clk 0:03:01]}  Nf6 {[%clk 0:02:59]} 5. Nc3 {[%clk 0:03:02]}  a6 {[%clk 0:03:00]} 6. a3 {[%clk 0:03:02]}  e5 {[%clk 0:02:59]} 7. Nf5 {[%clk 0:03:02]}  d5 {[%clk 0:02:59]} 8. Bg5 {[%clk 0:03:03]}  d4 {[%clk 0:02:45]} 9. Bxf6 {[%clk 0:03:03]}  gxf6 {[%clk 0:02:44]} 10. Na2 {[%clk 0:03:03]}  Bxf5 {[%clk 0:02:44]} 11. exf5 {[%clk 0:03:02]}  Qd5 {[%clk 0:02:44]} 12. Be2 {[%clk 0:03:02]}  Nc6 {[%clk 0:02:37]} 13. Bf3 {[%clk 0:02:49]}  Qb5 {[%clk 0:02:13]} 14. Qe2 {[%clk 0:02:48]}  Qxe2+ {[%clk 0:02:09]} 15. Kxe2 {[%clk 0:02:47]}  O-O-O {[%clk 0:02:10]} 16. Be4 {[%clk 0:02:41]}  h5 {[%clk 0:02:10]} 17. h4 {[%clk 0:02:41]}  Bh6 {[%clk 0:02:06]} 18. g3 {[%clk 0:02:40]}  Kc7 {[%clk 0:02:02]} 19. Rhd1 {[%clk 0:02:38]}  Rd6 {[%clk 0:01:57]} 20. Rd3 {[%clk 0:02:30]}  Na5 {[%clk 0:01:50]} 21. Nb4 {[%clk 0:02:23]}  Rhd8 {[%clk 0:01:49]} 22. Rad1 {[%clk 0:02:01]}  Nc4 {[%clk 0:01:46]} 23. Rb3 {[%clk 0:02:01]}  b5 {[%clk 0:01:42]} 24. Nd3 {[%clk 0:01:47]}  Bf8 {[%clk 0:01:38]} 25. a4 {[%clk 0:01:43]}  Kb6 {[%clk 0:01:32]} 26. axb5 {[%clk 0:01:43]}  axb5 {[%clk 0:01:31]} 27. Ra1 {[%clk 0:01:44]}  R6d7 {[%clk 0:01:26]} 28. Ra4 {[%clk 0:01:19]}  Na5 {[%clk 0:01:15]} 29. Rxa5 {[%clk 0:01:08]}  Kxa5 {[%clk 0:01:15]} 30. Kd1 {[%clk 0:00:58]}  Kb6 {[%clk 0:01:03]} 31. Bf3 {[%clk 0:00:50]}  Ra7 {[%clk 0:01:02]} 32. Bxh5 {[%clk 0:00:37]}  e4 {[%clk 0:01:02]} 33. Nf4 {[%clk 0:00:38]}  Bh6 {[%clk 0:00:57]} 34. Be2 {[%clk 0:00:30]}  Ra5 {[%clk 0:00:46]} 35. Ke1 {[%clk 0:00:23]}  Kc5 {[%clk 0:00:42]} 36. Kf1 {[%clk 0:00:20]}  b4 {[%clk 0:00:39]} 37. Nh3 {[%clk 0:00:19]}  Ra1+ {[%clk 0:00:35]} 38. Kg2 {[%clk 0:00:19]}  Re1 {[%clk 0:00:35]} 39. Bh5 {[%clk 0:00:18]}  Rc1 {[%clk 0:00:34]} 40. g4 {[%clk 0:00:16]}  Rxc2 {[%clk 0:00:31]} 41. g5 {[%clk 0:00:16]}  fxg5 {[%clk 0:00:31]} 42. hxg5 {[%clk 0:00:17]}  Bxg5 {[%clk 0:00:28]} 43. Nxg5 {[%clk 0:00:16]}  e3 {[%clk 0:00:22]} 44. Ne4+ {[%clk 0:00:04]}  Kd5 {[%clk 0:00:22]} 45. Bf3 {[%clk 0:00:04]}  Kc4 {[%clk 0:00:20]} 46. Rxb4+ {[%clk 0:00:02]}  Kxb4 {[%clk 0:00:20]} 47. Kg3 {[%clk 0:00:03]} 0-1


[Site "https://www.chess.com"]

[Event "Titled Tuesday Blitz March 15 Late 2022"]
[White "Mogranzini, Roberto"]
[Black "Jeet, Jain"]
[WhiteFideId "810894"]
[BlackFideId "5073022"]
[WhiteElo "2469"]
[BlackElo "2085"]
[Result "0-1"]
[Round "10"]
[TimeControl "180+1"]
[Date "2022.03.16"]
[WhiteClock "0:00:31"]
[BlackClock "0:01:38"]

1. c4 {[%clk 0:03:00]}  Nf6 {[%clk 0:02:55]} 2. g3 {[%clk 0:03:00]}  c5 {[%clk 0:02:56]} 3. Bg2 {[%clk 0:03:00]}  g6 {[%clk 0:02:56]} 4. Nc3 {[%clk 0:03:00]}  Bg7 {[%clk 0:02:56]} 5. a3 {[%clk 0:02:55]}  Nc6 {[%clk 0:02:56]} 6. Nf3 {[%clk 0:02:54]}  O-O {[%clk 0:02:56]} 7. O-O {[%clk 0:02:53]}  e6 {[%clk 0:02:56]} 8. b4 {[%clk 0:02:53]}  cxb4 {[%clk 0:02:55]} 9. axb4 {[%clk 0:02:53]}  d5 {[%clk 0:02:52]} 10. b5 {[%clk 0:02:47]}  Ne7 {[%clk 0:02:50]} 11. c5 {[%clk 0:02:33]}  Ne4 {[%clk 0:02:48]} 12. Nxe4 {[%clk 0:02:21]}  dxe4 {[%clk 0:02:43]} 13. Ng5 {[%clk 0:02:21]}  Bxa1 {[%clk 0:02:42]} 14. Nxe4 {[%clk 0:02:21]}  Bg7 {[%clk 0:02:41]} 15. e3 {[%clk 0:02:00]}  a6 {[%clk 0:02:41]} 16. bxa6 {[%clk 0:01:53]}  Rxa6 {[%clk 0:02:40]} 17. d4 {[%clk 0:01:49]}  b6 {[%clk 0:02:31]} 18. Qe2 {[%clk 0:01:41]}  bxc5 {[%clk 0:02:30]} 19. Nxc5 {[%clk 0:01:41]}  Ra1 {[%clk 0:02:30]} 20. Qb2 {[%clk 0:01:39]}  Qa5 {[%clk 0:02:28]} 21. Bd2 {[%clk 0:01:39]}  Rxf1+ {[%clk 0:02:28]} 22. Bxf1 {[%clk 0:01:40]}  Qc7 {[%clk 0:02:25]} 23. Qb5 {[%clk 0:01:01]}  Qc6 {[%clk 0:02:21]} 24. Qxc6 {[%clk 0:00:51]}  Nxc6 {[%clk 0:02:21]} 25. Bb5 {[%clk 0:00:50]}  Na7 {[%clk 0:02:16]} 26. Ba4 {[%clk 0:00:48]}  e5 {[%clk 0:02:09]} 27. d5 {[%clk 0:00:38]}  Bh3 {[%clk 0:02:09]} 28. e4 {[%clk 0:00:35]}  Rc8 {[%clk 0:02:08]} 29. Be3 {[%clk 0:00:34]}  Bf8 {[%clk 0:02:08]} 30. Nb7 {[%clk 0:00:33]}  Rb8 {[%clk 0:01:56]} 31. Bc6 {[%clk 0:00:30]}  Nxc6 {[%clk 0:01:48]} 32. dxc6 {[%clk 0:00:31]}  Rc8 {[%clk 0:01:40]} 33. f3 {[%clk 0:00:31]}  Rxc6 {[%clk 0:01:39]} 34. g4 {[%clk 0:00:31]}  h5 {[%clk 0:01:38]} 0-1


[Site "https://www.chess.com"]

[Event "Titled Tuesday Blitz March 15 Late 2022"]
[White "Moroni, Luca Jr"]
[Black "Abdyzhapar, Asylbek"]
[WhiteFideId "865834"]
[BlackFideId "13800337"]
[WhiteElo "2573"]
[BlackElo "2331"]
[Result "0-1"]
[Round "10"]
[TimeControl "180+1"]
[Date "2022.03.15"]
[WhiteClock "0:00:02"]
[BlackClock "0:00:17"]

1. d4 {[%clk 0:03:00]}  Nf6 {[%clk 0:02:59]} 2. Bf4 {[%clk 0:03:00]}  d5 {[%clk 0:02:57]} 3. e3 {[%clk 0:03:00]}  e6 {[%clk 0:02:58]} 4. Nf3 {[%clk 0:02:59]}  Bd6 {[%clk 0:02:58]} 5. Nbd2 {[%clk 0:03:00]}  O-O {[%clk 0:02:59]} 6. Bd3 {[%clk 0:03:00]}  c5 {[%clk 0:02:59]} 7. c3 {[%clk 0:03:00]}  Qc7 {[%clk 0:02:59]} 8. Ne5 {[%clk 0:03:00]}  Nfd7 {[%clk 0:02:54]} 9. Nxd7 {[%clk 0:02:35]}  Nxd7 {[%clk 0:02:52]} 10. Bxd6 {[%clk 0:02:34]}  Qxd6 {[%clk 0:02:52]} 11. f4 {[%clk 0:02:30]}  cxd4 {[%clk 0:02:49]} 12. cxd4 {[%clk 0:02:28]}  Nf6 {[%clk 0:02:22]} 13. O-O {[%clk 0:02:28]}  Bd7 {[%clk 0:02:20]} 14. Rc1 {[%clk 0:02:28]}  Rfc8 {[%clk 0:02:20]} 15. Qe2 {[%clk 0:02:21]}  Qb4 {[%clk 0:02:18]} 16. Nf3 {[%clk 0:02:20]}  Be8 {[%clk 0:02:15]} 17. h3 {[%clk 0:02:18]}  a5 {[%clk 0:02:14]} 18. a3 {[%clk 0:02:17]}  Qb6 {[%clk 0:02:14]} 19. Ne5 {[%clk 0:02:17]}  h6 {[%clk 0:02:13]} 20. g4 {[%clk 0:02:17]}  Ne4 {[%clk 0:02:13]} 21. Bxe4 {[%clk 0:02:16]}  dxe4 {[%clk 0:02:13]} 22. g5 {[%clk 0:02:14]}  h5 {[%clk 0:01:47]} 23. g6 {[%clk 0:01:54]}  fxg6 {[%clk 0:01:44]} 24. Qg2 {[%clk 0:01:51]}  Kh7 {[%clk 0:01:41]} 25. Kh1 {[%clk 0:01:40]}  Qb3 {[%clk 0:01:41]} 26. Rce1 {[%clk 0:01:26]}  Rc2 {[%clk 0:01:38]} 27. Rf2 {[%clk 0:01:26]}  Rac8 {[%clk 0:01:37]} 28. Rg1 {[%clk 0:01:25]}  Rxf2 {[%clk 0:01:36]} 29. Qxf2 {[%clk 0:01:26]}  Rc2 {[%clk 0:01:35]} 30. Qg3 {[%clk 0:01:26]}  Qxb2 {[%clk 0:00:33]} 31. Nxg6 {[%clk 0:01:23]}  Qxa3 {[%clk 0:00:33]} 32. Nf8+ {[%clk 0:01:21]}  Qxf8 {[%clk 0:00:31]} 33. d5 {[%clk 0:01:06]}  exd5 {[%clk 0:00:30]} 34. f5 {[%clk 0:01:07]}  Qf6 {[%clk 0:00:26]} 35. Qb8 {[%clk 0:01:03]}  Bd7 {[%clk 0:00:22]} 36. Qg3 {[%clk 0:00:56]}  Bxf5 {[%clk 0:00:21]} 37. Rf1 {[%clk 0:00:54]}  a4 {[%clk 0:00:21]} 38. h4 {[%clk 0:00:51]}  a3 {[%clk 0:00:21]} 39. Rg1 {[%clk 0:00:34]}  a2 {[%clk 0:00:20]} 40. Qe1 {[%clk 0:00:22]}  Bg4 {[%clk 0:00:20]} 41. Qg3 {[%clk 0:00:14]}  a1=Q {[%clk 0:00:19]} 42. Qg2 {[%clk 0:00:02]}  Qxh4+ {[%clk 0:00:17]} 0-1


[Site "https://www.chess.com"]